bitfinex/quotes_ETHUSD_20250414
["timestamp","ask_amount","ask_price","bid_price","bid_amount"]
[1744598673115,0.6648,1640.3,1640.0,4.87801]
[1744598673271,0.06212207,1640.2,1639.9,4.87831]
[1744598674214,0.06212207,1640.2,1640.0,4.87802]
[1744598674416,0.06212207,1640.2,1639.9,4.87815]
[1744598675641,0.06212207,1640.2,1640.1,4.87775]
[1744598675946,3.72692207,1640.5,1640.2,4.87741]
[1744598676099,0.72692207,1640.5,1640.2,9.75468]
[1744598676428,0.72692207,1640.5,1640.3,4.87711]
[1744598676626,0.6648,1640.5,1640.3,4.87696]
[1744598676921,8.39112207,1640.6,1640.4,4.87685]
[1744598677315,8.39112207,1640.6,1640.4,4.8767]
[1744598677504,0.06212207,1640.6,1640.1,0.802]
[1744598677700,0.06212207,1640.9,1640.2,0.06095941]
[1744598677906,0.72692207,1640.9,1640.6,4.87607]
[1744598678334,0.72692207,1640.9,1640.7,4.87584]
[1744598678643,0.6648,1640.9,1640.7,4.87575]
[1744598678847,8.38812207,1641.0,1640.8,4.87553]
[1744598679209,8.38812207,1641.0,1640.7,4.87575]
[1744598679415,8.38812207,1641.0,1640.7,9.7515]
[1744598679827,0.06212207,1641.0,1640.8,4.87554]
[1744598680454,0.06212207,1641.2,1640.9,9.7506]
[1744598680606,3.06212207,1641.2,1640.9,9.7506]
[1744598680812,8.79671528,1641.2,1640.8,4.87566]
[1744598681892,7.93660207,1641.2,1640.8,4.87545]
[1744598683428,4.8748,1641.1,1640.7,4.87595]
[1744598683633,0.06212207,1641.0,1640.7,4.87595]
[1744598684249,0.6648,1640.9,1640.6,4.87624]
[1744598684451,0.06212207,1640.8,1640.3,4.87699]
[1744598684650,4.93808207,1640.8,1640.4,4.87662]
[1744598684862,4.93808207,1640.8,1640.5,4.87655]
[1744598685063,3.06212207,1640.8,1640.5,4.87655]
[1744598685783,8.79816628,1640.8,1640.4,4.87662]
[1744598685941,4.87596,1640.7,1640.4,4.87662]
[1744598686283,4.87596,1640.7,1640.3,4.87714]
[1744598686284,0.6648,1640.5,1640.3,4.87714]
[1744598686789,0.6648,1640.5,1640.3,4.87715]
[1744598687397,0.6648,1640.5,1640.3,9.7541]
[1744598687550,0.6648,1640.5,1640.3,4.87695]
[1744598688191,0.06212207,1640.4,1640.2,4.87743]
[1744598688391,0.6648,1640.5,1640.3,4.87715]
[1744598688392,0.72692207,1640.5,1640.3,4.87715]
[1744598688561,0.72692207,1640.5,1640.2,4.8773]
[1744598690790,0.72692207,1640.5,1639.7,9.0813]
[1744598690987,3.0,1640.5,1640.3,4.87714]
[1744598691277,3.0,1640.5,1640.4,4.87685]
[1744598691494,3.0,1640.5,1640.3,4.87714]
[1744598692021,0.06212207,1640.6,1640.3,4.87714]
[1744598692318,0.06212207,1640.6,1640.3,9.75417]
[1744598692676,0.06212207,1640.6,1640.3,4.87703]
[1744598692885,0.06212207,1640.6,1640.3,4.87696]
[1744598694214,4.87658,1640.5,1640.1,4.87774]
[1744598694438,0.06212207,1640.4,1640.1,4.87774]
[1744598694613,5.48916207,1640.4,1640.0,4.87787]
[1744598695088,10.36623207,1640.4,1640.0,4.87787]
[1744598695284,0.6648,1640.3,1640.0,4.87787]
[1744598695479,5.54198,1640.3,1639.9,5.68851]
[1744598695686,4.87785,1640.1,1639.7,14.01208]
[1744598695894,0.06212207,1640.2,1639.8,4.87863]
[1744598695895,0.06212207,1640.0,1639.8,4.87863]
[1744598696120,4.94009207,1640.1,1639.7,9.7576]
[1744598696295,9.81806207,1640.1,1639.7,4.8788]
[1744598696925,4.94009207,1640.1,1639.7,9.75757]
[1744598697125,4.94009207,1640.1,1639.7,4.87877]
[1744598697425,0.06212207,1640.1,1639.9,4.87821]
[1744598697633,0.06212207,1640.2,1639.9,4.87821]
[1744598698527,0.06212207,1640.2,1640.0,4.87793]
[1744598699428,0.06212207,1640.2,1639.8,4.8786]
[1744598699630,0.06212207,1640.2,1639.9,4.87831]
[1744598699932,0.72692207,1640.3,1640.1,4.87767]
[1744598700086,3.06212207,1640.4,1640.2,4.87734]
[1744598700283,0.6648,1640.5,1640.3,4.87715]
[1744598700284,0.72692207,1640.5,1640.3,4.87715]
[1744598700900,0.06212207,1640.5,1640.3,4.87702]
[1744598701102,3.06212207,1640.6,1640.3,4.87698]
[1744598701335,3.06212207,1640.6,1640.4,4.87684]
[1744598701534,3.06212207,1640.7,1640.4,9.75357]
[1744598701734,3.06212207,1640.7,1640.4,4.8767]
[1744598702042,0.06212207,1640.7,1640.4,4.8767]
[1744598702233,4.93809207,1640.7,1640.3,4.87712]
[1744598702534,7.93809207,1640.7,1640.3,4.87712]
[1744598703022,4.87698,1640.4,1640.0,4.87804]
[1744598703228,0.06212207,1640.3,1640.0,4.87804]
[1744598703527,0.55,1640.2,1639.8,0.5854397]
[1744598703727,0.72692207,1640.1,1639.7,5.854727]
[1744598704029,5.60495207,1640.1,1639.7,5.854727]
[1744598704355,0.72692207,1640.1,1639.8,4.87862]
[1744598704919,0.06212207,1640.2,1639.9,4.87815]
[1744598705125,0.72692207,1640.3,1640.0,9.75583]
[1744598705320,7.8769,1640.4,1640.1,4.93844204]
[1744598705321,3.0,1640.4,1640.1,4.93844204]
[1744598705557,4.93938207,1640.3,1639.6,11.8494]
[1744598705757,9.81672207,1640.3,1639.9,4.8781]
[1744598705963,9.81672207,1640.3,1639.3,4.88013]
[1744598705964,4.87851,1639.9,1639.3,4.88013]
[1744598706268,4.87851,1639.9,1639.1,0.8277]
[1744598706269,4.87967,1639.5,1639.1,0.8277]
[1744598706428,0.55,1639.6,1639.1,0.02]
[1744598706429,0.06212207,1639.4,1639.1,0.02]
[1744598706633,4.88042,1639.2,1639.1,0.02]
[1744598706952,9.53509907,1639.2,1639.1,0.02]
[1744598707627,0.06212207,1639.2,1639.1,0.02]
[1744598707821,0.06212207,1639.4,1639.2,4.88036]
[1744598708044,0.06212207,1639.4,1639.1,0.02]
[1744598708360,0.55,1639.3,1639.1,0.02]
[1744598708544,6.15734207,1639.2,1639.1,0.02]
[1744598708853,7.61611428,1639.2,1639.1,0.02]
[1744598709445,6.15734207,1639.2,1639.1,0.02]
[1744598709985,12.59168274,1639.2,1639.1,0.02]
[1744598710142,5.54679,1638.7,1638.3,4.88293]
[1744598710340,0.06212207,1638.6,1638.4,4.88267]
[1744598710741,0.06212207,1638.6,1638.2,4.88337]
[1744598710941,0.06212207,1638.6,1638.3,4.88303]
[1744598711375,0.06212207,1638.6,1638.2,4.88337]
[1744598711939,4.88323,1638.3,1638.1,0.02]
[1744598712137,0.06212207,1638.2,1638.1,0.02]
[1744598712373,0.61212207,1638.5,1638.2,4.88321]
[1744598712878,8.54626,1638.9,1638.3,0.8077]
[1744598713169,0.06212207,1638.8,1638.5,4.88246]
[1744598713378,0.06212207,1638.8,1638.6,4.88214]
[1744598713578,3.06212207,1638.9,1638.7,4.88191]
[1744598713799,3.06212207,1638.9,1638.5,4.88244]
[1744598714070,3.06212207,1638.9,1638.6,4.99641351]
[1744598714273,13.19916,1639.0,1638.6,4.99641351]
[1744598714274,0.6648,1639.1,1638.6,1.10208886]
[1744598714584,0.06212207,1639.0,1638.8,4.88147]
[1744598714877,0.06212207,1639.0,1638.8,4.88161]
[1744598715180,0.06212207,1639.0,1638.8,4.88148]
[1744598715352,0.06212207,1639.0,1638.9,0.11394082]
[1744598715747,0.06212207,1639.0,1638.8,4.88148]
[1744598716277,0.06212207,1639.0,1638.8,9.87659855]
[1744598716444,0.06212207,1639.0,1638.8,4.99509855]
[1744598717103,5.43132,1638.9,1638.8,0.11361855]
[1744598717243,0.06212207,1639.0,1638.8,4.8815]
[1744598717448,0.06212207,1639.2,1639.0,4.88088]
[1744598717684,0.06212207,1639.3,1639.1,4.88072]
[1744598717984,0.55,1639.2,1638.7,5.6896]
[1744598718159,5.60775207,1639.1,1638.7,4.8818]
[1744598718483,0.72692207,1639.1,1638.7,4.88177]
[1744598718688,0.72692207,1639.1,1639.0,4.88102]
[1744598718862,0.72692207,1639.4,1639.1,4.8807]
[1744598719180,0.06212207,1639.4,1639.2,4.8802]
[1744598719346,0.06212207,1639.5,1639.2,9.76042]
[1744598719553,0.06212207,1639.5,1639.3,4.87997]
[1744598719554,0.61212207,1639.5,1639.3,4.87997]
[1744598719753,0.06212207,1639.5,1639.3,4.87997]
[1744598719973,0.06212207,1639.5,1639.2,4.8802]
[1744598720246,0.61212207,1639.5,1639.2,4.8802]
[1744598720454,0.55,1639.4,1638.9,4.88126]
[1744598720653,0.55,1639.2,1639.0,4.88097]
[1744598720853,0.06212207,1639.1,1639.0,4.88097]
[1744598721983,0.06212207,1639.3,1639.1,4.88054]
[1744598723659,0.06212207,1639.3,1639.0,9.76182]
[1744598723855,0.06212207,1639.3,1639.1,4.88052]
[1744598724060,0.06212207,1639.4,1639.3,4.88013]
[1744598724281,0.06212207,1639.7,1639.5,4.87937]
[1744598724477,0.06212207,1639.7,1639.6,4.87923]
[1744598724682,0.6648,1639.9,1639.6,4.87923]
[1744598724683,0.06212207,1639.8,1639.6,4.87923]
[1744598725389,0.06212207,1639.8,1639.6,9.75828]
[1744598725894,0.06212207,1640.0,1639.7,4.87879]
[1744598726097,0.06212207,1640.0,1639.7,5.69569]
[1744598726390,0.06212207,1640.0,1639.8,4.87845]
[1744598726593,10.41817,1640.5,1640.0,4.87804]
[1744598726799,0.06212207,1640.4,1640.3,4.87715]
[1744598726998,0.06212207,1640.4,1640.2,4.8774]
[1744598727203,0.06212207,1640.4,1639.8,4.87859]
[1744598727204,4.87734,1640.3,1639.8,4.87859]
[1744598727495,0.54985607,1640.2,1639.9,4.87816]
[1744598727665,0.06212207,1640.2,1639.9,4.87816]
[1744598727865,0.06212207,1640.2,1639.7,5.6956]
[1744598728073,3.61212207,1640.2,1639.9,4.87833]
[1744598728676,3.06212207,1640.2,1640.0,4.87787]
[1744598728995,0.06212207,1640.2,1640.1,4.87775]
[1744598729201,0.06212207,1640.3,1639.9,4.87833]
[1744598729411,4.8782,1640.0,1639.6,4.87912]
[1744598729578,0.06212207,1639.9,1639.6,4.87903]
[1744598729778,0.06212207,1639.9,1639.6,9.75815]
[1744598730375,0.06212207,1639.9,1639.7,4.87885]
[1744598730717,0.06212207,1640.0,1639.7,4.87885]
[1744598730914,0.61110928,1640.0,1639.6,4.87903]
[1744598731120,0.61110928,1640.0,1639.3,5.69687]
[1744598731121,3.55,1639.9,1639.3,5.69687]
[1744598731285,0.55,1639.7,1639.1,5.69755]
[1744598731620,0.55,1639.5,1639.1,4.88043]
[1744598731788,0.06212207,1639.4,1639.1,9.76095]
[1744598731995,0.06212207,1639.4,1639.1,4.88043]
[1744598732186,0.06212207,1639.4,1639.3,4.88013]
[1744598732386,0.06212207,1639.5,1639.3,4.88013]
[1744598733115,0.06212207,1639.7,1639.5,4.87927]
[1744598733292,0.6648,1640.0,1639.6,0.06099524]
[1744598733491,0.6648,1640.0,1639.4,4.87983]
[1744598733492,0.06212207,1640.2,1639.8,0.8169]
[1744598733694,4.878,1640.1,1639.6,4.87913]
[1744598733899,3.06212207,1640.2,1639.8,4.87848]
[1744598734189,3.06212207,1640.2,1639.6,5.367123]
[1744598734404,4.71283716,1640.6,1640.1,4.87754]
[1744598734606,0.06212207,1640.5,1640.2,4.87734]
[1744598735211,3.06212207,1640.5,1640.2,4.87734]
[1744598735420,3.06212207,1640.5,1640.1,4.87754]
[1744598735665,4.93870207,1640.5,1640.1,9.75509]
[1744598735853,3.06212207,1640.5,1640.3,4.87714]
[1744598736013,3.83961799,1640.5,1640.0,4.87776]
[1744598736219,8.71641799,1640.5,1640.1,4.8777]
[1744598736420,3.06212207,1640.5,1640.2,4.87742]
[1744598736736,7.93869207,1640.5,1640.1,9.75531]
[1744598736932,7.93869207,1640.5,1640.1,4.87761]
[1744598737138,7.93869207,1640.5,1640.1,4.87764]
[1744598737640,0.06212207,1640.5,1640.3,4.87692]
[1744598737839,4.11015923,1640.6,1640.3,4.87692]
[1744598738041,4.11015923,1640.6,1640.4,4.87669]
[1744598738447,4.04803716,1640.6,1640.4,4.87669]
[1744598738620,4.04803716,1640.6,1640.4,9.75342]
[1744598738819,4.04803716,1640.6,1640.5,4.87656]
[1744598739137,4.04803716,1640.6,1640.4,5.852032]
[1744598739462,4.04803716,1640.6,1640.2,0.7851]
[1744598739463,4.87656,1640.5,1640.2,0.7851]
[1744598739644,0.06212207,1640.5,1640.2,0.7851]
[1744598739946,4.11015923,1640.6,1640.3,4.87703]
[1744598740115,4.11015923,1640.6,1640.3,4.87715]
[1744598740321,8.92440716,1640.6,1640.2,5.6625]
[1744598740624,8.98641923,1640.6,1640.2,10.53984]
[1744598741007,4.87663,1640.5,1640.2,0.7851]
[1744598741211,0.06212207,1640.4,1640.1,4.87769]
[1744598741939,4.04803716,1640.6,1640.3,4.87703]
[1744598742119,4.11015923,1640.6,1640.3,4.87703]
[1744598742514,4.11015923,1640.6,1640.4,0.06096112]
[1744598742515,4.04803716,1640.6,1640.4,0.06096112]
[1744598742732,4.04803716,1640.6,1640.5,4.87656]
[1744598745164,0.06212207,1640.9,1640.4,5.44916111]
[1744598745457,0.06212207,1641.0,1640.7,9.75163]
[1744598745613,3.0,1641.1,1640.8,4.87546]
[1744598746068,0.02,1641.4,1641.1,4.87467]
[1744598746225,0.08212207,1641.4,1641.1,9.74926]
[1744598746426,0.08212207,1641.4,1641.1,4.87459]
[1744598746643,0.08212207,1641.4,1641.2,4.87446]
[1744598746837,0.02,1641.4,1641.3,4.87418]
[1744598747054,0.02,1641.4,1641.3,5.855137]
[1744598747871,0.02,1641.4,1641.3,6.640237]
[1744598748238,0.02,1641.4,1641.3,15.00314883]
[1744598748422,0.72692207,1642.2,1641.9,4.87229]
[1744598748624,8.98144923,1642.3,1641.9,4.87229]
[1744598749163,8.98138923,1642.3,1641.9,4.87229]
[1744598749726,4.87199,1642.1,1641.6,5.66697]
[1744598749925,4.93411207,1642.1,1641.7,4.87294]
[1744598750143,4.93411207,1642.1,1641.6,5.66697]
[1744598750345,4.93411207,1642.1,1641.5,4.87356]
[1744598750346,4.87236,1642.0,1641.5,4.87356]
[1744598750749,4.87236,1642.0,1641.6,4.87326]
[1744598751060,4.82236,1642.0,1641.6,9.74643]
[1744598751357,4.82236,1642.0,1641.6,4.87317]
[1744598751530,4.87245,1641.9,1641.5,4.87358]
[1744598751741,0.06212207,1642.0,1641.6,4.87317]
[1744598751961,4.93426207,1642.0,1641.6,4.87317]
[1744598752256,0.06212207,1642.0,1641.5,9.74697]
[1744598752435,4.87256,1641.9,1641.5,4.87339]
[1744598752631,4.87256,1641.9,1641.5,10.800885]
[1744598752839,4.93423207,1642.0,1641.5,5.927495]
[1744598753038,4.93423207,1642.0,1641.6,4.87308]
[1744598753239,4.93423207,1642.0,1641.6,9.80713016]
[1744598753440,0.06212207,1642.0,1641.6,4.93398867]
[1744598753641,3.0,1642.1,1641.8,5.66635]
[1744598753866,0.02,1642.4,1641.8,0.85470212]
[1744598754071,0.02,1642.4,1642.2,4.87146]
[1744598754374,0.02,1642.4,1642.3,4.87121]
[1744598754931,0.02,1642.4,1642.3,0.06087852]
[1744598755137,0.02,1642.4,1642.3,5.44381085]
[1744598756775,0.02,1642.4,1642.3,13.74081085]
[1744598757467,0.02,1642.4,1642.3,14.53461085]
[1744598759384,0.6648,1643.3,1642.9,4.86916]
[1744598759676,13.18498,1643.4,1643.1,4.86874]
[1744598759677,0.02,1643.4,1643.1,4.86874]
[1744598759967,0.02,1643.4,1643.1,4.86872]
[1744598760169,0.02,1643.4,1643.3,4.86825]
[1744598760680,0.02,1643.4,1643.3,5.66205]
[1744598760898,0.02,1643.4,1643.3,15.010104]
[1744598761054,0.02,1643.4,1643.3,18.010104]
[1744598761455,0.02,1643.4,1643.3,15.010104]
[1744598762058,0.3996769,1643.8,1643.7,4.86706]
[1744598762404,0.3996769,1643.8,1643.7,5.72168649]
[1744598762582,0.02,1644.4,1644.0,4.86617]
[1744598762757,0.02,1644.4,1643.7,15.01175365]
[1744598762758,4.86571,1644.2,1643.7,15.01175365]
[1744598762956,0.06212207,1644.3,1643.7,13.95271]
[1744598763201,7.88502,1644.4,1643.9,4.86619]
[1744598763500,4.8657,1644.2,1643.8,4.86676]
[1744598763802,4.92755207,1644.3,1643.9,0.06082239]
[1744598764182,4.8658,1644.2,1643.7,13.95284]
[1744598764382,4.8658,1644.2,1643.7,18.81976]
[1744598764586,4.86638,1644.0,1643.7,0.7938]
[1744598764763,4.86664,1643.9,1643.5,13.15954]
[1744598765102,4.86664,1643.9,1643.5,8.292]
[1744598765103,0.06212207,1643.9,1643.5,8.292]
[1744598765302,7.86635,1644.0,1643.5,8.292]
[1744598765614,0.57,1644.4,1644.0,4.86613]
[1744598765615,5.56982,1644.4,1644.0,4.86613]
[1744598765783,0.02,1644.4,1644.2,4.86531]
[1744598765987,0.02,1644.4,1644.0,13.15601]
[1744598766173,0.02,1644.4,1644.1,10.49706]
[1744598766373,0.02,1644.4,1644.2,4.86555]
[1744598766606,0.02,1644.4,1644.3,4.86529]
[1744598766903,0.02,1644.4,1644.3,5.838374]
[1744598767073,0.02,1644.4,1644.1,5.63145]
[1744598767398,0.02,1644.4,1644.2,4.86547]
[1744598767611,0.02,1644.4,1643.8,0.7656]
[1744598767612,4.8658,1644.2,1643.8,0.7656]
[1744598767771,4.86614,1644.1,1643.7,4.86697]
[1744598768097,4.86619,1644.0,1643.6,5.63278]
[1744598768259,4.86614,1644.1,1643.6,5.63278]
[1744598768457,4.86661,1643.9,1643.6,0.7656]
[1744598768670,0.06212207,1644.0,1643.6,5.63296]
[1744598768671,4.86619,1644.0,1643.6,5.63296]
[1744598768869,0.06212207,1644.0,1643.8,4.86664]
[1744598769074,5.56979,1644.4,1644.0,4.86603]
[1744598769281,0.7048,1644.4,1643.8,5.63218]
[1744598769485,4.92754207,1644.3,1643.8,5.63218]
[1744598769694,0.06212207,1644.3,1643.8,0.7656]
[1744598769897,0.06212207,1644.3,1643.6,4.86733]
[1744598769898,4.866,1644.1,1643.6,4.86733]
[1744598770099,4.8662,1644.0,1643.6,4.86733]
[1744598770394,4.86561,1644.2,1643.8,4.86662]
[1744598770564,12.73085,1644.3,1643.9,4.86645]
[1744598770762,4.86561,1644.2,1643.8,4.86659]
[1744598770994,0.79277321,1644.2,1643.6,4.86734]
[1744598771162,4.8656,1644.2,1643.8,4.86662]
[1744598771594,4.8659,1644.1,1643.7,4.86705]
[1744598771959,0.06212207,1644.1,1643.6,9.7345]
[1744598772185,4.86574,1644.2,1643.8,4.86675]
[1744598772391,4.86592,1644.1,1643.7,4.86694]
[1744598772580,1.72630028,1644.1,1643.5,0.7656]
[1744598772775,4.86692,1643.8,1643.4,4.86794]
[1744598772975,4.8665,1643.9,1643.5,0.06083768]
[1744598773198,4.8665,1643.9,1643.4,4.86793]
[1744598773365,4.86677,1643.8,1643.4,9.73569]
[1744598773708,4.86816,1643.4,1643.0,66.11271]
[1744598773918,4.86871,1643.2,1642.9,0.486916]
[1744598774400,4.8692,1643.0,1642.6,4.8703]
[1744598774967,4.8692,1643.0,1642.6,9.74043]
[1744598775180,4.8692,1643.0,1642.6,4.87013]
[1744598775397,4.8695,1642.9,1642.5,13.91122]
[1744598775603,4.86974,1642.8,1642.5,8.274]
[1744598775901,4.87032,1642.6,1642.5,8.274]
[1744598776202,4.87032,1642.6,1642.2,4.87126]
[1744598776385,4.8711,1642.4,1642.1,0.55]
[1744598776587,4.87151,1642.2,1642.1,0.55]
[1744598776904,8.55631,1642.2,1642.1,0.55]
[1744598777105,17.38031,1642.2,1642.1,0.55]
[1744598777396,19.605473,1642.2,1642.1,0.55]
[1744598778097,4.87391,1641.4,1641.1,0.02]
[1744598778304,0.6848,1641.6,1641.1,0.02]
[1744598778305,4.87448,1641.2,1641.1,0.02]
[1744598778600,5.55928,1641.2,1641.1,0.02]
[1744598778910,4.87672,1640.5,1640.1,0.7866]
[1744598779205,0.6848,1640.7,1640.3,4.87696]
[1744598779404,0.6848,1640.7,1640.2,4.87732]
[1744598779700,4.87745,1640.2,1640.1,0.02]
[1744598779902,4.87686,1640.4,1640.1,0.02]
[1744598780099,4.87718,1640.3,1640.1,0.02]
[1744598780317,4.93930207,1640.3,1640.1,0.02]
[1744598780463,4.87745,1640.2,1640.1,0.02]
[1744598780801,7.87648,1640.6,1640.1,4.89754]
[1744598781101,0.06212207,1640.5,1640.1,4.89774]
[1744598781263,4.87538,1640.9,1640.4,4.87663]
[1744598781464,0.06212207,1640.9,1640.6,4.87615]
[1744598781678,0.06212207,1640.9,1640.2,0.55]
[1744598781876,4.87448,1641.2,1640.7,4.87593]
[1744598782090,0.06212207,1641.1,1640.7,4.87593]
[1744598782294,3.06212207,1641.2,1640.7,5.363523]
[1744598782489,3.06212207,1641.2,1640.7,4.87573]
[1744598782692,0.6848,1641.3,1640.9,4.8751]
[1744598782894,0.6848,1641.3,1640.8,4.87566]
[1744598783083,10.49555207,1641.3,1640.8,4.87553]
[1744598783386,0.74692207,1641.3,1640.9,4.87523]
[1744598783584,0.06212207,1641.3,1641.0,4.87507]
[1744598783905,0.06212207,1641.3,1640.6,5.64593]
[1744598783906,4.87423,1641.3,1640.8,4.8756]
[1744598784072,9.74984,1641.1,1640.6,5.64582]
[1744598784267,0.06212207,1641.1,1640.8,4.87541]
[1744598784483,0.06212207,1641.3,1640.8,4.87541]
[1744598784681,0.06212207,1641.3,1640.9,4.87511]
[1744598784880,0.06212207,1641.3,1640.8,4.87562]
[1744598785085,0.06212207,1641.3,1640.8,1.03607032]
[1744598785286,7.93604207,1641.4,1640.9,4.87509]
[1744598785502,3.06212207,1641.4,1640.7,4.87596]
[1744598785807,4.8739,1641.4,1640.9,4.87513]
[1744598785978,4.8745,1641.2,1640.8,4.87566]
[1744598786170,4.87525,1641.0,1640.6,4.87613]
[1744598786375,4.87525,1641.0,1640.6,5.851384]
[1744598786582,4.87525,1641.0,1640.5,4.87641]
[1744598786803,0.45746028,1641.4,1640.7,0.7697]
[1744598787019,5.5575,1641.8,1640.9,3.0]
[1744598787304,5.5575,1641.8,1641.3,4.87398]
[1744598787305,4.93512207,1641.7,1641.3,4.87398]
[1744598787543,0.06212207,1641.7,1641.6,4.87329]
[1744598787812,4.87094,1642.4,1641.9,4.87234]
[1744598788007,4.87094,1642.4,1641.9,4.93306806]
[1744598788008,0.06212207,1642.3,1641.9,4.93306806]
[1744598788305,1.11102428,1642.3,1641.8,4.87267]
[1744598788473,0.06212207,1642.3,1641.9,9.74436]
[1744598788672,4.93345207,1642.3,1641.9,4.87214]
[1744598788902,4.87179,1642.2,1641.7,4.87286]
[1744598789109,0.06212207,1642.1,1641.8,4.87268]
[1744598789275,3.06212207,1642.3,1642.0,4.87189]
[1744598789706,0.6848,1642.4,1642.0,4.87189]
[1744598789908,5.55585,1642.4,1642.0,4.87189]
[1744598790207,0.6848,1642.4,1642.0,9.74378]
[1744598790511,5.55573,1642.4,1642.0,4.8721]
[1744598790713,5.5551,1642.7,1642.3,4.87121]
[1744598790913,8.283,1643.1,1642.4,4.87068]
[1744598790914,4.86958,1642.9,1642.4,4.87068]
[1744598791099,0.06212207,1642.8,1642.4,4.87068]
[1744598791436,4.87049,1642.6,1642.1,4.87157]
[1744598791733,4.87065,1642.5,1642.1,4.87157]
[1744598791912,4.93261207,1642.6,1642.1,4.93245775]
[1744598792209,4.87089,1642.5,1642.0,4.8721]
[1744598792377,0.06212207,1642.4,1642.0,4.8721]
[1744598792580,4.93318207,1642.4,1642.0,4.8721]
[1744598792878,5.61781207,1642.5,1642.1,4.93257035]
[1744598793096,5.61781207,1642.5,1642.1,4.87168]
[1744598793626,10.48867207,1642.5,1642.0,4.87196]
[1744598793792,4.87105,1642.4,1642.0,4.87196]
[1744598793993,5.61756207,1642.5,1642.0,4.87208]
[1744598794193,0.98026521,1642.6,1642.2,4.87125]
[1744598794194,3.06212207,1642.6,1642.2,4.87125]
[1744598794526,4.93249207,1642.6,1642.2,9.74264]
[1744598794700,4.93249207,1642.6,1642.1,4.87178]
[1744598794899,4.87062,1642.5,1642.1,4.87178]
[1744598795100,9.80429207,1642.4,1641.9,9.74474]
[1744598795418,5.91328328,1642.5,1642.1,4.87181]
[1744598795583,9.80384207,1642.5,1642.0,4.93298293]
[1744598795782,4.87106,1642.4,1641.9,4.87238]
[1744598795983,0.06212207,1642.5,1641.8,8.283]
[1744598795984,4.87167,1642.2,1641.8,8.283]
[1744598796230,4.87138,1642.3,1641.9,4.87239]
[1744598796386,4.87138,1642.3,1641.8,18.02823]
[1744598796591,4.87181,1642.1,1641.4,0.7717]
[1744598796814,4.87181,1642.1,1641.3,4.87406]
[1744598796815,4.87344,1641.6,1641.2,4.87446]
[1744598797115,0.6848,1642.9,1641.7,3.7717]
[1744598797301,0.6848,1642.9,1642.4,4.8707]
[1744598797502,5.55443,1642.9,1642.5,4.87051]
[1744598797705,5.55443,1642.9,1642.3,9.74205]
[1744598797706,4.86995,1642.8,1642.3,9.74205]
[1744598797910,0.6848,1642.9,1642.1,0.7717]
[1744598798088,0.6848,1642.9,1642.1,5.64344]
[1744598798300,0.6848,1642.9,1642.5,4.87043]
[1744598798499,4.86849,1643.3,1642.7,4.87003]
[1744598798738,0.6848,1643.2,1642.8,4.86961]
[1744598798910,4.86886,1643.1,1642.6,0.7717]
[1744598799109,5.55489,1642.7,1642.2,4.8715]
[1744598799314,3.0,1642.9,1642.6,4.8702]
[1744598799603,3.0,1642.9,1642.5,9.74095]
[1744598799835,7.86957,1642.9,1642.3,4.87105]
[1744598800035,3.0,1642.9,1642.5,4.87058]
[1744598800246,0.6848,1643.1,1642.9,4.86939]
[1744598800442,4.86845,1643.3,1642.9,4.86939]
[1744598800443,0.6848,1643.3,1643.0,4.86914]
[1744598800735,0.557278,1643.3,1643.1,4.86872]
[1744598800940,3.02,1643.4,1643.1,4.9295779]
[1744598801111,0.02,1643.4,1643.1,9.7374]
[1744598801315,0.02,1643.4,1643.2,4.86852]
[1744598801531,0.02,1643.4,1643.3,4.86825]
[1744598801731,0.02,1643.4,1643.0,4.86897]
[1744598802058,5.376945,1643.4,1643.0,4.86897]
[1744598802225,4.86917,1643.0,1642.6,4.87031]
[1744598802417,9.73849,1643.0,1642.5,5.64227]
[1744598802741,4.86886,1643.1,1642.6,4.87007]
[1744598802914,9.73794,1643.1,1642.6,9.74024]
[1744598803121,9.73796,1643.1,1642.6,4.87007]
[1744598803302,9.73796,1643.1,1642.8,4.86969]
[1744598803303,0.973796,1643.1,1642.8,4.86969]
[1744598803632,4.86955,1642.9,1642.5,4.87044]
[1744598804043,4.87032,1642.6,1642.2,4.87125]
[1744598804204,4.87032,1642.6,1642.1,9.74339]
[1744598804402,4.87064,1642.5,1642.0,13.14207]
[1744598804637,5.55585,1642.4,1642.0,13.14207]
[1744598805043,0.6848,1642.4,1641.8,52.232]
[1744598805357,4.87214,1642.0,1641.6,4.87327]
[1744598805509,4.87266,1641.9,1641.4,4.87386]
[1744598805705,0.487214,1641.9,1641.6,4.87315]
[1744598805916,3.6848,1642.0,1641.6,4.87315]
[1744598806319,3.6848,1642.0,1641.6,9.80712802]
[1744598806520,3.6848,1642.0,1641.6,9.80710802]
[1744598807063,8.55595,1642.4,1641.9,9.74442]
[1744598807216,0.6848,1642.4,1642.1,4.87166]
[1744598807417,13.82487,1642.7,1642.3,4.87099]
[1744598807626,3.0,1642.6,1642.3,4.87099]
[1744598807821,7.87047,1642.6,1642.1,4.87152]
[1744598808022,7.87035,1642.6,1642.1,4.87164]
[1744598808252,10.039896,1642.6,1642.2,0.06088687]
[1744598808424,10.039896,1642.6,1642.0,4.87209]
[1744598808425,4.87081,1642.5,1642.0,4.87209]
[1744598808623,5.169546,1642.6,1641.7,14.91866143]
[1744598808624,5.169546,1642.6,1641.7,9.0427]
[1744598808849,5.55617,1642.3,1641.9,4.87239]
[1744598809047,4.87182,1642.1,1641.6,4.87322]
[1744598809354,4.87221,1642.0,1641.6,4.87322]
[1744598809651,4.87251,1641.9,1641.5,5.69265]
[1744598809956,4.87251,1641.9,1641.5,4.87335]
[1744598810319,4.87181,1642.1,1641.7,4.87297]
[1744598810515,3.6848,1642.3,1641.8,0.06090797]